fUSD/lending_fUSD_20240904
["ID","MTS","AMOUNT","RATE_DAILY","PERIOD"]
[337122240,1725444657474,-1003.58,0.0001456,2]
[337122241,1725444657484,-762.95,0.0001456,2]
[337122242,1725444657493,-762.95,0.0001456,2]
[337122243,1725444657503,-500.0,0.0001456,2]
[337122244,1725444657512,-500.0,0.0001456,2]
[337122245,1725444657522,-788.71,0.0001456,2]
[337122246,1725444657532,-788.71,0.0001456,2]
[337122247,1725444657541,-500.0,0.0001456,2]
[337122248,1725444657550,-500.0,0.0001456,2]
[337122249,1725444657560,-1097.76,0.0001456,2]
[337122250,1725444657569,-1097.76,0.0001456,2]
[337122251,1725444657579,-500.0,0.0001456,2]
[337122252,1725444657588,-500.0,0.0001456,2]
[337122253,1725444657597,-1007.88,0.0001456,2]
[337122254,1725444657607,-1007.88,0.0001456,2]
[337122255,1725444657618,-606.43,0.0001456,2]
[337122256,1725444657627,-606.43,0.0001456,2]
[337122257,1725444657636,-540.29,0.0001456,2]
[337122258,1725444657645,-540.29,0.0001456,2]
[337122259,1725444657656,-1243.06,0.0001456,2]
[337122260,1725444657666,-1243.06,0.0001456,2]
[337122261,1725444657675,-500.0,0.0001456,2]
[337122262,1725444657685,-500.0,0.0001456,2]
[337122263,1725444657694,-500.0,0.0001456,2]
[337122264,1725444657704,-500.0,0.0001456,2]
[337122265,1725444657713,-500.0,0.0001456,2]
[337122266,1725444657724,-500.0,0.0001456,2]
[337122267,1725444657733,-542.83,0.0001456,2]
[337122268,1725444657744,-542.83,0.0001456,2]
[337122269,1725444657754,-500.0,0.0001456,2]
[337122270,1725444657763,-500.0,0.0001456,2]
[337122271,1725444657773,-611.14,0.0001456,2]
[337122272,1725444657782,-611.14,0.0001456,2]
[337122273,1725444657791,-815.13,0.0001456,2]
[337122274,1725444657801,-815.13,0.0001456,2]
[337122275,1725444657810,-668.93,0.0001456,2]
[337122276,1725444657821,-668.93,0.0001456,2]
[337122277,1725444657832,-500.0,0.0001456,2]
[337122278,1725444657842,-500.0,0.0001456,2]
[337122279,1725444657852,-691.48,0.0001456,2]
[337122280,1725444657862,-691.48,0.0001456,2]
[337122281,1725444657872,-500.0,0.0001456,2]
[337122282,1725444657881,-273.39600058,0.0001456,2]
[337122283,1725444657891,-225.26616441,0.0001456,2]
[337122284,1725444657903,-708.66,0.0001456,2]
[337122285,1725444657912,-576.37,0.0001456,2]
[337122286,1725444657921,-708.66,0.0001456,2]
[337122287,1725444657931,-576.37,0.0001456,2]
[337122288,1725444657940,-470.35210592,0.0001456,2]
[337122289,1725444657949,-532.25,0.00014561,2]
[337122290,1725444657959,-736.07,0.00014561,2]
[337122291,1725444657968,-151.0,0.00014561,2]
[337122292,1725444657977,-500.0,0.00014561,2]
[337122293,1725444657987,-289.548652,0.00014561,2]
[337122294,1725444657996,-500.0,0.00014561,2]
[337122295,1725444658006,-792.98,0.00014563,2]
[337122296,1725444658015,-810.5,0.00014563,2]
[337122297,1725444658024,-969.63,0.00014563,2]
[337122298,1725444658033,-625.9,0.00014563,2]
[337122299,1725444658042,-583.52,0.00014563,2]
[337122300,1725444658051,-668.95,0.00014563,2]
[337122301,1725444658060,-500.0,0.00014563,2]
[337122302,1725444658070,-557.86,0.00014568,2]
[337122303,1725444658085,-500.0,0.00014568,2]
[337122304,1725444658094,-548.11,0.00014568,2]
[337122305,1725444658103,-955.18,0.00014568,2]
[337122306,1725444658269,-553.44,0.00014568,2]
[337122307,1725444658297,-610.44,0.00014568,2]
[337122308,1725444658307,-999.58,0.00014568,2]
[337122309,1725444658318,-500.0,0.00014568,2]
[337122310,1725444658330,-500.0,0.00014568,2]
[337122311,1725444658339,-997.04,0.00014568,2]
[337122312,1725444658348,-692.92,0.00014568,2]
[337122313,1725444658358,-500.0,0.00014568,2]
[337122314,1725444658367,-500.0,0.00014568,2]
[337122315,1725444658376,-670.94,0.00014568,2]
[337122316,1725444658385,-564.17,0.00014568,2]
[337122317,1725444658394,-549.87,0.00014568,2]
[337122318,1725444658403,-343.85020845,0.00014568,2]
[337122319,1725444658412,-847.84,0.00014568,2]
[337122320,1725444658421,-585.31,0.00014568,2]
[337122321,1725444658432,-500.0,0.00014568,2]
[337122322,1725444658441,-565.72,0.00014568,2]
[337122323,1725444658450,-500.0,0.00014568,2]
[337122324,1725444658461,-500.0,0.00014568,2]
[337122325,1725444658470,-649.69,0.00014568,2]
[337122326,1725444658479,-417.22517081,0.00014569,2]
[337122327,1725444658488,-500.0,0.00014569,2]
[337122328,1725444658497,-500.0,0.00014569,2]
[337122329,1725444658507,-500.0,0.00014569,2]
[337122330,1725444658517,-510.53080944,0.00014569,2]
[337122331,1725444658527,-500.0,0.00014569,2]
[337122332,1725444658537,-500.0,0.00014569,2]
[337122333,1725444658550,-527.43873829,0.00014569,2]
[337122334,1725444658559,-659.61,0.00014569,2]
[337122335,1725444658568,-500.0,0.00014569,2]
[337122336,1725444658578,-500.0,0.00014569,2]
[337122337,1725444658587,-223.05351276,0.00014569,2]
[337122338,1725444658597,-500.0,0.00014569,2]
[337122339,1725444658607,-500.0,0.00014569,2]
[337122340,1725444658616,-474.89900859,0.00014569,2]
[337122341,1725444658626,-500.0,0.00014569,2]
[337122342,1725444658635,-500.0,0.00014569,2]
[337122343,1725444658643,-811.71,0.00014569,2]
[337122344,1725444658653,-500.0,0.00014569,2]
[337122345,1725444658662,-864.67,0.00014569,2]
[337122346,1725444658672,-804.3,0.00014569,2]
[337122347,1725444658681,-754.55,0.00014569,2]
[337122348,1725444658691,-500.0,0.00014569,2]
[337122349,1725444658700,-561.15,0.00014569,2]
[337122350,1725444658710,-548.2,0.00014569,2]
[337122351,1725444658720,-738.96,0.00014569,2]
[337122352,1725444658729,-1011.29,0.00014569,2]
[337122353,1725444658739,-500.0,0.00014569,2]
[337122354,1725444658748,-225.92947172,0.00014569,2]
[337122355,1725444658758,-510.79762718,0.00014569,2]
[337122356,1725444658768,-500.0,0.00014569,2]
[337122357,1725444658777,-502.62,0.00014569,2]
[337122358,1725444658787,-500.0,0.00014569,2]
[337122359,1725444658796,-1168.02,0.00014569,2]
[337122360,1725444658805,-612.49,0.00014569,2]
[337122361,1725444658815,-543.19,0.00014569,2]
[337122362,1725444658830,-500.0,0.00014569,2]
[337122363,1725444658839,-500.0,0.00014569,2]
[337122364,1725444658849,-783.54,0.00014569,2]
[337122365,1725444658858,-500.0,0.00014569,2]
[337122366,1725444658869,-913.1,0.00014569,2]
[337122367,1725444658879,-704.97,0.00014569,2]
[337122368,1725444658888,-944.78,0.00014569,2]
[337122369,1725444658898,-513.88,0.00014569,2]
[337122370,1725444658908,-547.49,0.00014569,2]
[337122371,1725444658917,-570.13,0.00014569,2]
[337122372,1725444658926,-559.61,0.00014569,2]
[337122373,1725444658936,-516.38,0.00014569,2]
[337122374,1725444658945,-500.0,0.00014569,2]
[337122375,1725444658955,-583.69,0.00014569,2]
[337122376,1725444658964,-500.0,0.00014569,2]
[337122377,1725444658975,-765.29,0.00014569,2]
[337122378,1725444658983,-540.57,0.00014569,2]
[337122379,1725444658993,-500.0,0.00014569,2]
[337122380,1725444659002,-500.0,0.00014569,2]
[337122381,1725444659011,-500.0,0.00014569,2]
[337122382,1725444659021,-500.0,0.00014569,2]
[337122383,1725444659030,-500.0,0.00014569,2]
[337122384,1725444659039,-500.0,0.00014569,2]
[337122385,1725444659048,-500.0,0.00014569,2]
[337122386,1725444659057,-565.65730173,0.00014569,2]
[337122387,1725444659067,-500.0,0.00014569,2]
[337122388,1725444659076,-500.0,0.00014569,2]
[337122389,1725444659085,-500.0,0.00014569,2]
[337122390,1725444659095,-627.77038669,0.00014569,2]
[337122391,1725444659104,-475.95087565,0.00014569,2]
[337122392,1725444659113,-500.0,0.00014569,2]
[337122393,1725444659122,-208.61240004,0.00014569,2]
[337122394,1725444659132,-500.0,0.00014569,2]
[337122395,1725444659141,-500.0,0.00014569,2]
[337122396,1725444659151,-500.0,0.00014569,2]
[337122397,1725444659160,-2452.73,0.00014569,2]
[337122398,1725444659169,-810.73,0.00014569,2]
[337122399,1725444659178,-810.73,0.00014569,2]
[337122400,1725444659188,-810.73,0.00014569,2]
[337122401,1725444659198,-742.37,0.00014569,2]
[337122402,1725444659208,-742.37,0.00014569,2]
[337122403,1725444659217,-742.37,0.00014569,2]
[337122404,1725444659227,-1841.57,0.00014569,2]
[337122405,1725444659236,-500.0,0.00014569,2]
[337122406,1725444659246,-500.0,0.00014569,2]
[337122407,1725444659255,-500.0,0.00014569,2]
[337122408,1725444659265,-1643.26,0.00014569,2]
[337122409,1725444659276,-1018.97,0.00014569,2]
[337122410,1725444659286,-727.31,0.00014569,2]
[337122411,1725444659296,-727.31,0.00014569,2]
[337122412,1725444659306,-727.31,0.00014569,2]
[337122413,1725444659315,-500.0,0.00014569,2]
[337122414,1725444659325,-500.0,0.00014569,2]
[337122415,1725444659334,-500.0,0.00014569,2]
[337122416,1725444659344,-2292.11,0.00014569,2]
[337122417,1725444659354,-500.0,0.00014569,2]
[337122418,1725444659363,-500.0,0.00014569,2]
[337122419,1725444659373,-500.0,0.00014569,2]
[337122420,1725444659383,-742.74,0.00014569,2]
[337122421,1725444659393,-742.74,0.00014569,2]
[337122422,1725444659403,-742.74,0.00014569,2]
[337122423,1725444659413,-500.0,0.00014569,2]
[337122424,1725444659424,-500.0,0.00014569,2]
[337122425,1725444659433,-265.45520992,0.00014569,2]
[337122426,1725444659442,-500.0,0.00014569,2]
[337122427,1725444659452,-500.0,0.00014569,2]
[337122428,1725444659462,-500.0,0.00014569,2]
[337122429,1725444659471,-500.0,0.00014569,2]
[337122430,1725444659481,-500.0,0.00014569,2]
[337122431,1725444659490,-500.0,0.00014569,2]
[337122432,1725444659500,-548.34,0.00014569,2]
[337122433,1725444659510,-548.34,0.00014569,2]
[337122434,1725444659520,-548.34,0.00014569,2]
[337122435,1725444659530,-646.85,0.00014569,2]
[337122436,1725444659539,-646.85,0.00014569,2]
[337122437,1725444659549,-646.85,0.00014569,2]
[337122438,1725444659561,-500.0,0.00014569,2]
[337122439,1725444659570,-500.0,0.00014569,2]
[337122440,1725444659579,-500.0,0.00014569,2]
[337122441,1725444659589,-500.0,0.00014569,2]
[337122442,1725444659598,-500.0,0.00014569,2]
[337122443,1725444659608,-500.0,0.00014569,2]
[337122444,1725444659618,-500.0,0.00014569,2]
[337122445,1725444659628,-500.0,0.00014569,2]
[337122446,1725444659637,-500.0,0.00014569,2]
[337122447,1725444659647,-532.25,0.00014569,2]
[337122448,1725444659656,-532.25,0.00014569,2]
[337122449,1725444659665,-532.25,0.00014569,2]
[337122450,1725444659674,-736.07,0.00014569,2]
[337122451,1725444659684,-736.07,0.00014569,2]
[337122452,1725444659694,-736.07,0.00014569,2]
[337122453,1725444659703,-580.77,0.00014569,2]
[337122454,1725444659712,-580.77,0.00014569,2]
[337122455,1725444659722,-580.77,0.00014569,2]
[337122456,1725444659731,-151.0,0.00014569,2]
[337122457,1725444659741,-500.0,0.00014569,2]
[337122458,1725444659750,-500.0,0.00014569,2]
[337122459,1725444659760,-500.0,0.00014569,2]
[337122460,1725444659770,-1048.26,0.00014569,2]
[337122461,1725444659779,-1048.26,0.00014569,2]
[337122462,1725444659789,-1048.26,0.00014569,2]
[337122463,1725444659799,-680.35,0.00014569,2]
[337122464,1725444659808,-680.35,0.00014569,2]
[337122465,1725444659817,-680.35,0.00014569,2]
[337122466,1725444659832,-500.0,0.00014569,2]
[337122467,1725444659842,-500.0,0.00014569,2]
[337122468,1725444659851,-500.0,0.00014569,2]
[337122469,1725444659861,-500.0,0.00014569,2]
[337122470,1725444659872,-500.0,0.00014569,2]
[337122471,1725444659882,-500.0,0.00014569,2]
[337122472,1725444659892,-500.0,0.00014569,2]
[337122473,1725444659903,-500.0,0.00014569,2]
[337122474,1725444659913,-500.0,0.00014569,2]
[337122475,1725444659922,-500.0,0.00014569,2]
[337122476,1725444659932,-500.0,0.00014569,2]
[337122477,1725444659941,-500.0,0.00014569,2]
[337122478,1725444659951,-501.659056,0.00014569,2]
[337122479,1725444659960,-501.659056,0.00014569,2]
[337122480,1725444659970,-501.659056,0.00014569,2]
[337122481,1725444659979,-501.659061,0.00014569,2]
[337122482,1725444659989,-557.86,0.00014569,2]
[337122483,1725444659998,-557.86,0.00014569,2]
[337122484,1725444660007,-557.86,0.00014569,2]
[337122485,1725444660018,-557.86,0.00014569,2]
[337122486,1725444660028,-500.0,0.00014569,2]
[337122487,1725444660038,-500.0,0.00014569,2]
[337122488,1725444660047,-500.0,0.00014569,2]
[337122489,1725444660057,-500.0,0.00014569,2]
[337122490,1725444660067,-720.97,0.00014569,2]
[337122491,1725444660077,-720.97,0.00014569,2]
[337122492,1725444660087,-720.97,0.00014569,2]
[337122493,1725444660096,-636.71,0.00014569,2]
[337122494,1725444660106,-636.71,0.00014569,2]
[337122495,1725444660115,-636.71,0.00014569,2]
[337122496,1725444660125,-548.11,0.00014569,2]
[337122497,1725444660135,-548.11,0.00014569,2]
[337122498,1725444660145,-548.11,0.00014569,2]
[337122499,1725444660155,-548.11,0.00014569,2]
[337122500,1725444660164,-734.91,0.00014569,2]
[337122501,1725444660174,-734.91,0.00014569,2]
[337122502,1725444660184,-734.91,0.00014569,2]
[337122503,1725444660194,-500.0,0.00014569,2]
[337122504,1725444660204,-500.0,0.00014569,2]
[337122505,1725444660215,-500.0,0.00014569,2]
[337122506,1725444660225,-1601.03,0.00014569,2]
[337122507,1725444660235,-1601.03,0.00014569,2]
[337122508,1725444660244,-1601.03,0.00014569,2]
[337122509,1725444660254,-439.64711404,0.00014569,2]
[337122510,1725444660264,-1454.97,0.00014569,2]
[337122511,1725444660274,-1454.97,0.00014569,2]
[337122512,1725444660283,-1454.97,0.00014569,2]
[337122513,1725444660293,-955.18,0.00014569,2]
[337122514,1725444660303,-955.18,0.00014569,2]
[337122515,1725444660312,-955.18,0.00014569,2]
[337122516,1725444660321,-955.18,0.00014569,2]
[337122517,1725444660333,-500.0,0.00014569,2]
[337122518,1725444660343,-500.0,0.00014569,2]
[337122519,1725444660353,-500.0,0.00014569,2]
[337122520,1725444660363,-1316.21,0.00014569,2]
[337122521,1725444660372,-1316.21,0.00014569,2]
[337122522,1725444660382,-1316.21,0.00014569,2]
[337122523,1725444660392,-1169.72,0.00014569,2]
[337122524,1725444660401,-1169.72,0.00014569,2]
[337122525,1725444660411,-1169.72,0.00014569,2]
[337122526,1725444660420,-553.44,0.00014569,2]
[337122527,1725444660431,-553.44,0.00014569,2]
[337122528,1725444660441,-553.44,0.00014569,2]
[337122529,1725444660451,-553.44,0.00014569,2]
[337122530,1725444660460,-1595.13,0.00014569,2]
[337122531,1725444660470,-1595.13,0.00014569,2]
[337122532,1725444660479,-1595.13,0.00014569,2]
[337122533,1725444660488,-500.0,0.00014569,2]
[337122534,1725444660498,-368.27411534,0.00014569,2]
[337122535,1725444660507,-610.44,0.00014569,2]
[337122536,1725444660516,-610.44,0.00014569,2]
[337122537,1725444660526,-610.44,0.00014569,2]
[337122538,1725444660535,-610.44,0.00014569,2]
[337122539,1725444660545,-565.15,0.00014569,2]
[337122540,1725444660554,-565.15,0.00014569,2]
[337122541,1725444660563,-565.15,0.00014569,2]
[337122542,1725444660572,-590.73,0.00014569,2]
[337122543,1725444660582,-590.73,0.00014569,2]
[337122544,1725444660591,-590.73,0.00014569,2]
[337122545,1725444660601,-500.0,0.00014569,2]
[337122546,1725444660611,-500.0,0.00014569,2]
[337122547,1725444660620,-500.0,0.00014569,2]
[337122548,1725444660630,-1062.18,0.00014569,2]
[337122549,1725444660639,-1062.18,0.00014569,2]
[337122550,1725444660648,-1062.18,0.00014569,2]
[337122551,1725444660658,-999.58,0.00014569,2]
[337122552,1725444660667,-999.58,0.00014569,2]
[337122553,1725444660678,-999.58,0.00014569,2]
[337122554,1725444660688,-1029.6,0.00014569,2]
[337122555,1725444660697,-999.58,0.00014569,2]
[337122556,1725444660707,-1029.6,0.00014569,2]
[337122557,1725444660716,-1029.6,0.00014569,2]
[337122558,1725444660726,-801.41,0.00014569,2]
[337122559,1725444660735,-801.41,0.00014569,2]
[337122560,1725444660744,-801.41,0.00014569,2]
[337122561,1725444660754,-500.0,0.00014569,2]
[337122562,1725444660763,-500.0,0.00014569,2]
[337122563,1725444660773,-500.0,0.00014569,2]
[337122564,1725444660782,-1249.24,0.00014569,2]
[337122565,1725444660792,-1249.24,0.00014569,2]
[337122566,1725444660801,-1249.24,0.00014569,2]
[337122567,1725444660810,-500.0,0.00014569,2]
[337122568,1725444660823,-1222.7,0.00014569,2]
[337122569,1725444660834,-500.0,0.00014569,2]
[337122570,1725444660850,-1222.7,0.00014569,2]
[337122571,1725444660859,-327.1033986,0.00014569,2]
[337122572,1725444660870,-1222.7,0.00014569,2]
[337122573,1725444660879,-648.75,0.00014569,2]
[337122574,1725444660889,-648.75,0.00014569,2]
[337122575,1725444660899,-648.75,0.00014569,2]
[337122576,1725444660909,-155.58059565,0.00014569,2]
[337122577,1725444660918,-500.0,0.00014569,2]
[337122578,1725444660928,-465.36949797,0.00014569,2]
[337122579,1725444660937,-1489.8,0.00014569,2]
[337122580,1725444660946,-1489.8,0.00014569,2]
[337122581,1725444660955,-1489.8,0.00014569,2]
[337122582,1725444660964,-413.65199583,0.00014569,2]
[337122583,1725444660974,-1003.58,0.00014569,2]
[337122584,1725444660983,-1003.58,0.00014569,2]
[337122585,1725444660992,-1003.58,0.00014569,2]
[337122586,1725444661002,-762.95,0.00014569,2]
[337122587,1725444661012,-762.95,0.00014569,2]
[337122588,1725444661022,-762.95,0.00014569,2]
[337122589,1725444661031,-471.01001206,0.00014569,2]
[337122590,1725444661040,-997.04,0.00014569,2]
[337122591,1725444661050,-692.92,0.00014569,2]
[337122592,1725444661059,-997.04,0.00014569,2]
[337122593,1725444661069,-692.92,0.00014569,2]
[337122594,1725444661081,-997.04,0.00014569,2]
[337122595,1725444661090,-692.92,0.00014569,2]
[337122596,1725444661100,-997.04,0.00014569,2]
[337122597,1725444661109,-692.92,0.00014569,2]
[337122598,1725444661119,-788.71,0.00014569,2]
[337122599,1725444661130,-788.71,0.00014569,2]
[337122600,1725444661139,-788.71,0.00014569,2]
[337122601,1725444661149,-500.0,0.00014569,2]
[337122602,1725444661159,-500.0,0.00014569,2]
[337122603,1725444661168,-500.0,0.00014569,2]
[337122604,1725444661178,-500.0,0.00014569,2]
[337122605,1725444661188,-542.35879881,0.00014569,2]
[337122606,1725444661197,-500.0,0.00014569,2]
[337122607,1725444661207,-500.0,0.00014569,2]
[337122608,1725444661217,-500.0,0.00014569,2]
[337122609,1725444661226,-1097.76,0.00014569,2]
[337122610,1725444661236,-1097.76,0.00014569,2]
[337122611,1725444661246,-1097.76,0.00014569,2]
[337122612,1725444661255,-500.0,0.00014569,2]
[337122613,1725444661265,-500.0,0.00014569,2]
[337122614,1725444661274,-500.0,0.00014569,2]
[337122615,1725444661284,-670.94,0.00014569,2]
[337122616,1725444661469,-670.94,0.00014569,2]
[337122617,1725444661480,-670.94,0.00014569,2]
[337122618,1725444661490,-670.94,0.00014569,2]
[337122619,1725444661500,-1007.88,0.00014569,2]
[337122620,1725444661509,-606.43,0.00014569,2]
[337122621,1725444661519,-1007.88,0.00014569,2]
[337122622,1725444661528,-606.43,0.00014569,2]
[337122623,1725444661537,-1007.88,0.00014569,2]
[337122624,1725444661547,-606.43,0.00014569,2]
[337122625,1725444661556,-564.17,0.00014569,2]
[337122626,1725444661565,-564.17,0.00014569,2]
[337122627,1725444661574,-564.17,0.00014569,2]
[337122628,1725444661585,-564.17,0.00014569,2]
[337122629,1725444661594,-540.29,0.00014569,2]
[337122630,1725444661604,-540.29,0.00014569,2]
[337122631,1725444661613,-540.29,0.00014569,2]
[337122632,1725444661623,-549.87,0.00014569,2]
[337122633,1725444661633,-549.87,0.00014569,2]
[337122634,1725444661642,-549.87,0.00014569,2]
[337122635,1725444661651,-549.87,0.00014569,2]
[337122636,1725444661661,-1243.06,0.00014569,2]
[337122637,1725444661671,-1243.06,0.00014569,2]
[337122638,1725444661680,-500.0,0.00014569,2]
[337122639,1725444661690,-1243.06,0.00014569,2]
[337122640,1725444661699,-500.0,0.00014569,2]
[337122641,1725444661708,-500.0,0.00014569,2]
[337122642,1725444661718,-500.0,0.00014569,2]
[337122643,1725444661727,-500.0,0.00014569,2]
[337122644,1725444661737,-500.0,0.00014569,2]
[337122645,1725444661748,-500.0,0.00014569,2]
[337122646,1725444661758,-305.54371398,0.00014569,2]
[337122647,1725444661767,-847.84,0.00014569,2]
[337122648,1725444661778,-847.84,0.00014569,2]
[337122649,1725444661787,-847.84,0.00014569,2]
[337122650,1725444661797,-847.84,0.00014569,2]
[337122651,1725444661806,-585.31,0.00014569,2]
[337122652,1725444661816,-585.31,0.00014569,2]
[337122653,1725444661830,-585.31,0.00014569,2]
[337122654,1725444661839,-585.31,0.00014569,2]
[337122655,1725444661848,-542.83,0.00014569,2]
[337122656,1725444661858,-542.83,0.00014569,2]
[337122657,1725444661870,-542.83,0.00014569,2]
[337122658,1725444661880,-500.0,0.00014569,2]
[337122659,1725444661889,-500.0,0.00014569,2]
[337122660,1725444661899,-365.42482959,0.00014569,2]
[337122661,1725444661908,-611.14,0.00014569,2]
[337122662,1725444661918,-611.14,0.00014569,2]
[337122663,1725444661927,-611.14,0.00014569,2]
[337122664,1725444661937,-815.13,0.00014569,2]
[337122665,1725444661947,-815.13,0.00014569,2]
[337122666,1725444661957,-500.0,0.00014569,2]
[337122667,1725444661966,-815.13,0.00014569,2]
[337122668,1725444661975,-500.0,0.00014569,2]
[337122669,1725444661984,-594.33190042,0.00014569,2]
[337122670,1725444661994,-668.93,0.00014569,2]
[337122671,1725444662004,-668.93,0.00014569,2]
[337122672,1725444662013,-668.93,0.00014569,2]
[337122673,1725444662023,-565.72,0.00014569,2]
[337122674,1725444662032,-565.72,0.00014569,2]
[337122675,1725444662041,-565.72,0.00014569,2]
[337122676,1725444662051,-565.72,0.00014569,2]
[337122677,1725444662060,-500.0,0.00014569,2]
[337122678,1725444662070,-500.0,0.00014569,2]
[337122679,1725444662080,-500.0,0.00014569,2]
[337122680,1725444662091,-500.0,0.00014569,2]
[337122681,1725444662100,-500.0,0.00014569,2]
[337122682,1725444662109,-500.0,0.00014569,2]
[337122683,1725444662119,-578.88756517,0.00014569,2]
[337122684,1725444662128,-691.48,0.00014569,2]
[337122685,1725444662136,-691.48,0.00014569,2]
[337122686,1725444662146,-691.48,0.00014569,2]
[337122687,1725444662155,-500.0,0.00014569,2]
[337122688,1725444662165,-500.0,0.00014569,2]
[337122689,1725444662175,-500.0,0.00014569,2]
[337122690,1725444662185,-500.0,0.00014569,2]
[337122691,1725444662194,-708.66,0.00014569,2]
[337122692,1725444662204,-576.37,0.00014569,2]
[337122693,1725444662213,-708.66,0.00014569,2]
[337122694,1725444662222,-576.37,0.00014569,2]
[337122695,1725444662231,-708.66,0.00014569,2]
[337122696,1725444662240,-576.37,0.00014569,2]
[337122697,1725444662249,-649.69,0.00014569,2]
[337122698,1725444662259,-649.69,0.00014569,2]
[337122699,1725444662268,-649.69,0.00014569,2]
[337122700,1725444662276,-649.69,0.00014569,2]
[337122701,1725444662287,-500.0,0.0001457,2]
[337122702,1725444662296,-500.0,0.0001457,2]
[337122703,1725444662305,-500.0,0.0001457,2]
[337122704,1725444662314,-283.59431246,0.0001457,2]
[337122705,1725444662323,-500.0,0.0001457,2]
[337122706,1725444662333,-500.0,0.0001457,2]
[337122707,1725444662341,-500.0,0.0001457,2]
[337122708,1725444662350,-500.0,0.0001457,2]
[337122709,1725444662359,-500.0,0.0001457,2]
[337122710,1725444662368,-500.0,0.0001457,2]
[337122711,1725444662377,-473.36747353,0.0001457,2]
[337122712,1725444662387,-500.0,0.0001457,2]
[337122713,1725444662396,-500.0,0.0001457,2]
[337122714,1725444662406,-500.0,0.0001457,2]
[337122715,1725444662415,-500.0,0.0001457,2]
[337122716,1725444662424,-500.0,0.0001457,2]
[337122717,1725444662433,-792.98,0.0001457,2]
[337122718,1725444662442,-792.98,0.0001457,2]
[337122719,1725444662451,-792.98,0.0001457,2]
[337122720,1725444662461,-792.98,0.0001457,2]
[337122721,1725444662470,-792.98,0.0001457,2]
[337122722,1725444662480,-792.98,0.0001457,2]
[337122723,1725444662491,-500.0,0.0001457,2]
[337122724,1725444662500,-500.0,0.0001457,2]
[337122725,1725444662510,-500.0,0.0001457,2]
[337122726,1725444662519,-500.0,0.0001457,2]
[337122727,1725444662529,-500.0,0.0001457,2]
[337122728,1725444662539,-810.5,0.0001457,2]
[337122729,1725444662550,-810.5,0.0001457,2]
[337122730,1725444662559,-810.5,0.0001457,2]
[337122731,1725444662568,-810.5,0.0001457,2]
[337122732,1725444662577,-810.5,0.0001457,2]
[337122733,1725444662586,-810.5,0.0001457,2]
[337122734,1725444662596,-659.61,0.0001457,2]
[337122735,1725444662606,-659.61,0.0001457,2]
[337122736,1725444662615,-659.61,0.0001457,2]
[337122737,1725444662624,-659.61,0.0001457,2]
[337122738,1725444662633,-659.61,0.0001457,2]
[337122739,1725444662643,-969.63,0.0001457,2]